[Event "FIDE WYCC Girls U14 2023"]
[Site "Montesilvano"]
[Date "2023.11.18"]
[Round "6.9"]
[White "Sachi Jain"]
[Black "Maklakova, Naomi"]
[Result "*"]
[WhiteElo "1743"]
[BlackElo "1873"]
[Annotator "NA"]
[PlyCount "65"]
[EventDate "2023.11.13"]
[EventType "swiss"]
[EventCountry "ITA"]
[SourceTitle "playchess.com"]
[Source "ChessBase"]
[SourceQuality "1"]
[TimeControl "40/5400+30:1800+30"]

1. e4 {[%emt 0:00:10]} e5 {[%emt 0:00:23]} 2. Nf3 {[%emt 0:00:35]} Nc6 {[%emt 0:00:17]} 3. Bc4 {[%emt 0:00:08]} Nf6 {[%emt 0:00:09]} 4. d3 {[%emt 0:00:23]} h6 {[%emt 0:00:10]} 5. O-O {[%emt 0:02:31]} d6 {[%emt 0:00:57]} 6. a4 {[%emt 0:01:10]} g5 {[%emt 0:00:46]} 7. a5 {[%emt 0:02:18]} Bg7 {[%emt 0:01:15]} 8. c3 {[%emt 0:03:39]} Ne7 {[%emt 0:05:10]} 9. a6 {[%emt 0:03:19]} b6 {[%emt 0:03:28]} 10. Re1 {[%emt 0:17:41]} O-O {[%emt 0:04:13]} 11. d4 {[%emt 0:01:01]} Ng6 {[%emt 0:02:24]} 12. dxe5 {[%emt 0:03:10]} dxe5 {[%emt 0:00:19]} 13. Qxd8 {[%emt 0:04:17]} Rxd8 {[%emt 0:00:08]} 14. h3 {[%emt 0:02:46]} c6 {[%emt 0:15:50]} 15. Bf1 {[%emt 0:07:58]} Ne8 {[%emt 0:12:26]} 16. Na3 {[%emt 0:09:59]} Nc7 {[%emt 0:04:48]} 17. Nc2 {[%emt 0:00:42]} b5 {[%emt 0:02:05]} 18. Nb4 {[%emt 0:01:24]} c5 {[%emt 0:00:55]} 19. Nd5 {[%emt 0:00:40]} Nxd5 {[%emt 0:02:14]} 20. exd5 {[%emt 0:00:02]} c4 {[%emt 0:00:11]} 21. Ra5 {[%emt 0:03:43]} Bd7 {[%emt 0:07:22]} 22. g4 {[%emt 0:08:02]} Be8 {[%emt 0:01:46]} 23. Bg2 {[%emt 0:04:05]} Rac8 {[%emt 0:04:11]} 24. Be3 {[%emt 0:02:34]} Rc7 {[%emt 0:00:37]} 25. Nd2 {[%emt 0:01:32]} Ne7 {[%emt 0:13:57]} 26. d6 {[%emt 0:06:43]} Rxd6 {[%emt 0:00:25]} 27. Bb7 {[%emt 0:00:01]} Nc8 {[%emt 0:08:17]} 28. Ne4 {[%emt 0:00:46]} Rd8 {[%emt 0:00:16]} 29. Bxc8 {[%emt 0:01:24]} Rdxc8 {[%emt 0:00:11]} 30. Nd6 {[%emt 0:00:08]} Rd8 {[%emt 0:01:12]} 31. Nxe8 {[%emt 0:00:32]} Rxe8 {[%emt 0:00:01]} 32. Rxb5 {[%emt 0:00:01]} Ree7 {[%emt 0:02:44]} 33. Rd1 {[%emt 0:00:13]} *

[Event "FIDE WYCC Girls U14 2023"]
[Site "Montesilvano"]
[Date "2023.11.18"]
[Round "6.10"]
[White "Caku, Kler"]
[Black "Huseynova, Lala"]
[Result "0-1"]
[ECO "B52"]
[WhiteElo "1740"]
[BlackElo "1867"]
[Annotator "NA"]
[PlyCount "109"]
[EventDate "2023.11.13"]
[EventType "swiss"]
[EventCountry "ITA"]
[SourceTitle "playchess.com"]
[Source "ChessBase"]
[SourceQuality "1"]
[TimeControl "40/5400+30:1800+30"]

1. e4 {[%emt 0:00:21]} c5 {[%emt 0:00:33]} 2. Nf3 {[%emt 0:00:21]} d6 {[%emt 0:00:05]} 3. Bb5+ {[%emt 0:00:25]} Bd7 {[%emt 0:00:11]} 4. Bxd7+ {[%emt 0:00:08]} Qxd7 {[%emt 0:00:03]} 5. d3 {[%emt 0:00:42]} Nc6 {[%emt 0:01:35]} 6. O-O {[%emt 0:00:56]} Nf6 {[%emt 0:03:50]} 7. h3 {[%emt 0:01:19]} g6 {[%emt 0:03:57]} 8. Bf4 {[%emt 0:08:49]} Bg7 {[%emt 0:01:47]} 9. Nc3 {[%emt 0:00:57]} O-O {[%emt 0:08:58]} 10. Re1 {[%emt 0:01:52]} Nh5 {[%emt 0:10:26]} 11. Bh2 {[%emt 0:00:39]} f5 {[%emt 0:03:51]} 12. e5 {[%emt 0:05:37]} f4 {[%emt 0:07:14]} 13. e6 {[%emt 0:02:28]} Qc8 {[%emt 0:04:57]} 14. Rb1 {[%emt 0:05:58]} Rf5 {[%emt 0:05:55]} 15. Nh4 {[%emt 0:04:12]} Re5 {[%emt 0:03:09]} 16. Rxe5 {[%emt 0:01:32]} dxe5 {[%emt 0:01:22]} 17. Nd5 {[%emt 0:02:20]} Nf6 {[%emt 0:04:12]} 18. Qf3 {[%emt 0:15:35]} Qd8 {[%emt 0:05:40]} 19. Nxf6+ {[%emt 0:05:18]} Bxf6 {[%emt 0:00:09]} 20. Qg4 {[%emt 0:00:21]} Kh8 {[%emt 0:05:09]} 21. Nf3 {[%emt 0:01:58]} Qd5 {[%emt 0:05:48]} 22. b3 {[%emt 0:14:55]} Nd8 {[%emt 0:05:34]} 23. Re1 {[%emt 0:00:58]} Nxe6 {[%emt 0:01:05]} 24. c4 {[%emt 0:07:37]} Qd6 {[%emt 0:01:40]} 25. Nd2 {[%emt 0:07:51]} Nd4 {[%emt 0:04:13]} 26. Ne4 {[%emt 0:00:21]} Qc6 {[%emt 0:00:35]} 27. h4 {[%emt 0:01:41]} Qc8 {[%emt 0:02:53]} 28. Qxc8+ {[%emt 0:03:29]} Rxc8 {[%emt 0:00:04]} 29. Nc3 h6 {[%emt 0:02:45]} 30. Re4 {[%emt 0:01:39]} Kg7 {[%emt 0:01:23]} 31. Kf1 {[%emt 0:00:15]} Rd8 {[%emt 0:01:19]} 32. f3 {[%emt 0:03:49]} Nf5 {[%emt 0:00:56]} 33. Nd5 {[%emt 0:00:45]} e6 {[%emt 0:01:27]} 34. Nxf6 {[%emt 0:01:01]} Kxf6 {[%emt 0:00:00]} 35. Ke1 {[%emt 0:01:13]} Rxd3 {[%emt 0:01:05]} 36. Re2 {[%emt 0:00:17]} Nxh4 {[%emt 0:01:34]} 37. Bg1 {[%emt 0:00:14]} b6 {[%emt 0:00:05]} 38. Rc2 {[%emt 0:00:40]} Nf5 {[%emt 0:00:44]} 39. Ke2 {[%emt 0:00:47]} Rd7 {[%emt 0:00:42]} 40. Rb2 {[%emt 0:00:00]} Nd4+ {[%emt 0:00:00]} 41. Kf1 {[%emt 0:00:57]} h5 {[%emt 0:03:58]} 42. Rd2 {[%emt 0:00:20]} g5 {[%emt 0:00:43]} 43. Bf2 {[%emt 0:00:17]} Kf5 {[%emt 0:02:50]} 44. Bg1 {[%emt 0:02:43]} h4 {[%emt 0:01:47]} 45. Bf2 {[%emt 0:00:07]} a5 {[%emt 0:00:36]} 46. Rd1 {[%emt 0:00:22]} Rh7 {[%emt 0:00:23]} 47. Rd2 {[%emt 0:00:15]} h3 {[%emt 0:01:53]} 48. gxh3 {[%emt 0:00:05]} Rxh3 {[%emt 0:00:06]} 49. Kg2 {[%emt 0:00:04]} Rxf3 {[%emt 0:01:07]} 50. Rd1 {[%emt 0:01:21]} Rc3 {[%emt 0:00:43]} 51. Rh1 {[%emt 0:00:07]} e4 {[%emt 0:00:17]} 52. Rh8 {[%emt 0:00:14]} e3 {[%emt 0:00:18]} 53. Be1 {[%emt 0:00:09]} Rc2+ {[%emt 0:00:22]} 54. Kf1 {[%emt 0:00:04]} f3 {[%emt 0:00:20]} 55. a3 0-1

[Event "FIDE WYCC Girls U14 2023"]
[Site "Montesilvano"]
[Date "2023.11.18"]
[Round "6.11"]
[White "Zagorac, Lara"]
[Black "Agamyradova, Mahri"]
[Result "0-1"]
[ECO "A06"]
[WhiteElo "1866"]
[BlackElo "1652"]
[Annotator "NA"]
[PlyCount "150"]
[EventDate "2023.11.13"]
[EventType "swiss"]
[EventCountry "ITA"]
[SourceTitle "playchess.com"]
[Source "ChessBase"]
[SourceQuality "1"]
[TimeControl "40/5400+30:1800+30"]

1. Nf3 {[%emt 0:00:05]} d5 {[%emt 0:00:09]} 2. g3 {[%emt 0:00:16]} Nf6 {[%emt 0:00:09]} 3. Bg2 {[%emt 0:00:18]} e6 {[%emt 0:00:23]} 4. O-O {[%emt 0:01:30]} Be7 {[%emt 0:00:07]} 5. d4 {[%emt 0:00:29]} O-O {[%emt 0:00:05]} 6. c4 {[%emt 0:00:17]} dxc4 {[%emt 0:00:04]} 7. Qc2 {[%emt 0:00:31]} a6 {[%emt 0:01:03]} 8. a4 {[%emt 0:00:12]} Bd7 {[%emt 0:00:49]} 9. Nc3 {[%emt 0:01:21]} Bc6 {[%emt 0:00:39]} 10. Rd1 {[%emt 0:00:36]} Nd5 {[%emt 0:08:58]} 11. e4 {[%emt 0:16:14]} Nxc3 {[%emt 0:06:47]} 12. bxc3 {[%emt 0:01:24]} Be8 {[%emt 0:07:53]} 13. Ne5 {[%emt 0:03:57]} Nc6 {[%emt 0:48:58]} 14. Nxc4 {[%emt 0:06:50]} b5 {[%emt 0:04:06]} 15. Ne3 {[%emt 0:06:28]} Rb8 {[%emt 0:02:09]} 16. d5 {[%emt 0:06:11]} exd5 {[%emt 0:00:22]} 17. Nxd5 {[%emt 0:01:53]} Bd6 {[%emt 0:01:36]} 18. f4 {[%emt 0:04:09]} f6 {[%emt 0:00:03]} 19. c4 {[%emt 0:02:27]} Bc5+ {[%emt 0:04:22]} 20. Be3 {[%emt 0:06:16]} Bxe3+ {[%emt 0:01:06]} 21. Nxe3 {[%emt 0:00:52]} Nd4 {[%emt 0:01:29]} 22. Qd3 {[%emt 0:02:54]} c5 {[%emt 0:00:48]} 23. axb5 {[%emt 0:03:19]} axb5 {[%emt 0:00:26]} 24. Nf5 {[%emt 0:01:44]} Bh5 {[%emt 0:02:01]} 25. Rd2 {[%emt 0:09:11]} Nxf5 {[%emt 0:02:01]} 26. exf5 {[%emt 0:02:52]} Qxd3 {[%emt 0:00:39]} 27. Rxd3 {[%emt 0:00:13]} bxc4 {[%emt 0:03:19]} 28. Bd5+ {[%emt 0:02:11]} Bf7 {[%emt 0:00:27]} 29. Bxf7+ {[%emt 0:00:25]} Rxf7 {[%emt 0:00:04]} 30. Rc3 {[%emt 0:00:29]} Rb4 {[%emt 0:00:19]} 31. Rac1 {[%emt 0:00:58]} Rc7 {[%emt 0:00:12]} 32. Kf2 {[%emt 0:06:19]} Kf7 {[%emt 0:00:57]} 33. g4 Rb2+ 34. R1c2 {[%emt 0:08:53]} Rxc2+ {[%emt 0:01:03]} 35. Rxc2 {[%emt 0:00:01]} Ke7 {[%emt 0:00:19]} 36. Ke3 {[%emt 0:01:02]} Kd6 {[%emt 0:00:21]} 37. Rxc4 {[%emt 0:01:31]} Kd5 {[%emt 0:00:02]} 38. Rc1 {[%emt 0:01:05]} c4 {[%emt 0:00:26]} 39. h4 {[%emt 0:00:40]} Re7+ {[%emt 0:00:21]} 40. Kf3 Kd4 41. g5 {[%emt 0:15:04]} Re3+ {[%emt 0:07:15]} 42. Kg4 {[%emt 0:02:30]} c3 {[%emt 0:03:45]} 43. Kh5 {[%emt 0:08:00]} Ke4 {[%emt 0:20:23]} 44. Kg4 {[%emt 0:06:29]} Kd4 {[%emt 0:02:01]} 45. Kh5 {[%emt 0:00:16]} Ke4 {[%emt 0:01:29]} 46. Kg4 {[%emt 0:00:39]} Rf3 {[%emt 0:00:30]} 47. Re1+ {[%emt 0:00:21]} Re3 {[%emt 0:00:01]} 48. Rc1 {[%emt 0:00:23]} Kd4 {[%emt 0:00:38]} 49. Kh5 {[%emt 0:00:28]} Rh3 {[%emt 0:02:22]} 50. Rd1+ {[%emt 0:03:23]} Rd3 {[%emt 0:00:30]} 51. Rc1 {[%emt 0:00:12]} Ke4 {[%emt 0:01:03]} 52. Kg4 {[%emt 0:00:57]} Kd4 {[%emt 0:00:01]} 53. Kh5 {[%emt 0:00:05]} Rh3 {[%emt 0:00:10]} 54. Kg4 {[%emt 0:00:52]} Rh2 {[%emt 0:00:07]} 55. Rd1+ {[%emt 0:01:24]} Rd2 {[%emt 0:00:05]} 56. Rc1 {[%emt 0:00:35]} c2 {[%emt 0:00:03]} 57. Kh5 {[%emt 0:00:19]} Rh2 {[%emt 0:02:21]} 58. gxf6 {[%emt 0:00:37]} gxf6 {[%emt 0:00:00]} 59. Kh6 {[%emt 0:00:30]} Rxh4+ {[%emt 0:00:02]} 60. Kg7 {[%emt 0:00:15]} Kd3 {[%emt 0:00:16]} 61. Kxf6 {[%emt 0:00:49]} Rxf4 {[%emt 0:00:04]} 62. Rh1 {[%emt 0:00:32]} Rf2 {[%emt 0:01:05]} 63. Ra1 {[%emt 0:00:39]} Kd2 {[%emt 0:00:43]} 64. Ra2 {[%emt 0:00:10]} h5 {[%emt 0:00:24]} 65. Kg6 {[%emt 0:00:41]} h4 {[%emt 0:00:09]} 66. f6 {[%emt 0:00:02]} h3 {[%emt 0:00:05]} 67. f7 {[%emt 0:00:22]} h2 {[%emt 0:00:04]} 68. Ra1 {[%emt 0:00:54]} c1=Q {[%emt 0:00:21]} 69. Ra2+ {[%emt 0:00:09]} Qc2+ {[%emt 0:00:17]} 70. Kg7 {[%emt 0:00:57]} Rxf7+ {[%emt 0:00:08]} 71. Kxf7 {[%emt 0:00:24]} Qxa2+ {[%emt 0:00:02]} 72. Kf6 {[%emt 0:00:15]} h1=Q {[%emt 0:00:06]} 73. Ke5 {[%emt 0:00:14]} Qad5+ {[%emt 0:00:04]} 74. Kf6 {[%emt 0:00:20]} Qh6+ {[%emt 0:00:01]} 75. Ke7 {[%emt 0:00:28]} Qdd6+ {[%emt 0:00:03]} 0-1

[Event "FIDE WYCC Girls U14 2023"]
[Site "Montesilvano"]
[Date "2023.11.18"]
[Round "6.12"]
[White "Lyutsinger, Iren"]
[Black "Sezdbekova, Aizhan"]
[Result "*"]
[ECO "B54"]
[WhiteElo "2020"]
[BlackElo "1594"]
[Annotator "NA"]
[PlyCount "46"]
[EventDate "2023.11.13"]
[EventType "swiss"]
[EventCountry "ITA"]
[SourceTitle "playchess.com"]
[Source "ChessBase"]
[SourceQuality "1"]
[TimeControl "40/5400+30:1800+30"]

1. e4 c5 {[%emt 0:00:43]} 2. Nf3 {[%emt 0:00:09]} d6 {[%emt 0:08:25]} 3. d4 {[%emt 0:00:12]} cxd4 {[%emt 0:00:08]} 4. Nxd4 {[%emt 0:00:03]} e5 {[%emt 0:00:08]} 5. Bb5+ {[%emt 0:11:02]} Bd7 {[%emt 0:04:14]} 6. Bxd7+ {[%emt 0:01:28]} Nxd7 {[%emt 0:06:46]} 7. Nf5 {[%emt 0:04:18]} Nb6 {[%emt 0:02:00]} 8. a4 {[%emt 0:04:39]} g6 {[%emt 0:19:45]} 9. Ne3 {[%emt 0:00:52]} Nf6 {[%emt 0:05:21]} 10. Nc3 {[%emt 0:07:39]} Rc8 {[%emt 0:16:32]} 11. Qd3 {[%emt 0:03:29]} a6 {[%emt 0:03:34]} 12. O-O {[%emt 0:04:40]} Qc7 {[%emt 0:01:50]} 13. f4 {[%emt 0:06:41]} exf4 {[%emt 0:03:12]} 14. Ned5 {[%emt 0:07:06]} Nbxd5 {[%emt 0:06:31]} 15. exd5 {[%emt 0:00:57]} Qb6+ {[%emt 0:01:49]} 16. Kh1 {[%emt 0:00:39]} Ng4 {[%emt 0:01:42]} 17. Qe4+ {[%emt 0:17:18]} Ne5 {[%emt 0:02:20]} 18. Qxf4 {[%emt 0:03:50]} Bg7 {[%emt 0:03:10]} 19. Ne4 {[%emt 0:05:07]} O-O {[%emt 0:02:25]} 20. Ra3 {[%emt 0:02:16]} Rxc2 {[%emt 0:02:39]} 21. Rh3 {[%emt 0:01:23]} h5 {[%emt 0:01:32]} 22. Be3 {[%emt 0:02:05]} Qxb2 {[%emt 0:01:39]} 23. Bd4 {[%emt 0:00:36]} Qa2 {[%emt 0:02:22]} *

[Event "FIDE WYCC Girls U14 2023"]
[Site "Montesilvano"]
[Date "2023.11.18"]
[Round "6.13"]
[White "Saparya Ghosh"]
[Black "Jiang, Tianyu"]
[Result "0-1"]
[ECO "D31"]
[WhiteElo "1659"]
[BlackElo "1917"]
[Annotator "NA"]
[PlyCount "100"]
[EventDate "2023.11.13"]
[EventType "swiss"]
[EventCountry "ITA"]
[SourceTitle "playchess.com"]
[Source "ChessBase"]
[SourceQuality "1"]
[TimeControl "40/5400+30:1800+30"]

1. d4 {[%emt 0:00:24]} d5 {[%emt 0:00:15]} 2. c4 {[%emt 0:00:06]} e6 {[%emt 0:00:04]} 3. Nc3 {[%emt 0:00:16]} c6 {[%emt 0:00:05]} 4. cxd5 {[%emt 0:00:15]} exd5 {[%emt 0:00:05]} 5. Bf4 {[%emt 0:00:09]} Nf6 {[%emt 0:02:53]} 6. e3 {[%emt 0:00:30]} Bf5 {[%emt 0:01:31]} 7. Nge2 {[%emt 0:01:11]} Qb6 {[%emt 0:22:10]} 8. Qd2 {[%emt 0:19:07]} Nbd7 {[%emt 0:00:26]} 9. Ng3 {[%emt 0:00:41]} Bg6 {[%emt 0:00:43]} 10. Be2 {[%emt 0:03:56]} Be7 {[%emt 0:00:46]} 11. h4 {[%emt 0:04:32]} h5 {[%emt 0:03:41]} 12. f3 {[%emt 0:05:51]} Rd8 {[%emt 0:24:06]} 13. Kf2 {[%emt 0:06:22]} a5 {[%emt 0:15:12]} 14. a3 {[%emt 0:04:22]} O-O {[%emt 0:03:52]} 15. Na4 {[%emt 0:03:50]} Qb3 {[%emt 0:02:13]} 16. Bd1 {[%emt 0:08:49]} Qb5 {[%emt 0:00:26]} 17. Bc2 {[%emt 0:01:40]} Bxc2 {[%emt 0:09:44]} 18. Qxc2 {[%emt 0:00:08]} g6 {[%emt 0:00:15]} 19. Ne2 {[%emt 0:02:04]} Rc8 {[%emt 0:05:10]} 20. Nac3 {[%emt 0:06:52]} Qa6 {[%emt 0:00:57]} 21. Rhd1 {[%emt 0:06:33]} b5 {[%emt 0:01:20]} 22. Qd3 {[%emt 0:07:14]} a4 {[%emt 0:01:14]} 23. Bg5 {[%emt 0:04:12]} Nb6 {[%emt 0:00:50]} 24. Nf4 {[%emt 0:00:57]} Kg7 {[%emt 0:00:24]} 25. Kg1 {[%emt 0:00:25]} Nc4 {[%emt 0:00:23]} 26. Qe2 {[%emt 0:03:46]} Qa7 {[%emt 0:01:25]} 27. e4 {[%emt 0:05:35]} dxe4 {[%emt 0:01:39]} 28. fxe4 {[%emt 0:00:18]} Rcd8 {[%emt 0:00:13]} 29. e5 {[%emt 0:01:16]} Ng4 {[%emt 0:00:12]} 30. Bxe7 {[%emt 0:03:36]} Qxe7 {[%emt 0:00:03]} 31. Rd3 {[%emt 0:00:30]} Qa7 {[%emt 0:01:37]} 32. Rad1 {[%emt 0:00:28]} Ncxe5 {[%emt 0:00:05]} 33. R3d2 {[%emt 0:00:33]} Rfe8 {[%emt 0:00:10]} 34. Qf1 {[%emt 0:00:27]} Ne3 {[%emt 0:01:25]} 35. Qe1 {[%emt 0:00:32]} Nxd1 {[%emt 0:00:07]} 36. Qxd1 {[%emt 0:00:05]} Ng4 {[%emt 0:00:41]} 37. Rd3 {[%emt 0:00:57]} Re7 {[%emt 0:01:14]} 38. Qd2 {[%emt 0:00:22]} Rde8 {[%emt 0:00:54]} 39. Nce2 {[%emt 0:00:31]} Re4 {[%emt 0:00:34]} 40. Rf3 {[%emt 0:00:00]} Qe7 {[%emt 0:00:00]} 41. Ng3 {[%emt 0:06:19]} Re1+ {[%emt 0:02:44]} 42. Nf1 {[%emt 0:01:13]} Qxh4 {[%emt 0:08:17]} 43. Rh3 {[%emt 0:03:36]} Qe7 {[%emt 0:07:41]} 44. Nd3 {[%emt 0:02:52]} Re2 {[%emt 0:05:01]} 45. Qc3 {[%emt 0:00:57]} Kg8 {[%emt 0:00:53]} 46. Nf4 {[%emt 0:01:34]} Re4 {[%emt 0:00:40]} 47. Nd3 {[%emt 0:02:32]} Qf6 {[%emt 0:01:29]} 48. Rf3 {[%emt 0:04:25]} Qxd4+ {[%emt 0:00:12]} 49. Kh1 {[%emt 0:00:35]} Qxc3 {[%emt 0:00:20]} 50. bxc3 {[%emt 0:00:04]} Re2 {[%emt 0:00:10]} 0-1

[Event "FIDE WYCC Girls U14 2023"]
[Site "Montesilvano"]
[Date "2023.11.18"]
[Round "6.14"]
[White "Stoll, Lucia"]
[Black "Wojs, Alicja"]
[Result "*"]
[ECO "B47"]
[WhiteElo "1887"]
[BlackElo "1630"]
[Annotator "NA"]
[PlyCount "81"]
[EventDate "2023.11.13"]
[EventType "swiss"]
[EventCountry "ITA"]
[SourceTitle "playchess.com"]
[Source "ChessBase"]
[SourceQuality "1"]
[TimeControl "40/5400+30:1800+30"]

1. e4 {[%emt 0:00:01]} c5 {[%emt 0:00:04]} 2. Nf3 {[%emt 0:00:05]} e6 {[%emt 0:00:07]} 3. d4 {[%emt 0:00:05]} cxd4 {[%emt 0:00:07]} 4. Nxd4 {[%emt 0:00:03]} Nc6 {[%emt 0:00:09]} 5. Nc3 {[%emt 0:00:06]} Qc7 {[%emt 0:00:08]} 6. g3 {[%emt 0:00:35]} a6 {[%emt 0:00:54]} 7. Bg2 {[%emt 0:00:22]} Nf6 {[%emt 0:02:12]} 8. O-O {[%emt 0:00:19]} Be7 {[%emt 0:03:22]} 9. Be3 {[%emt 0:04:06]} O-O {[%emt 0:08:23]} 10. Nxc6 {[%emt 0:05:23]} dxc6 {[%emt 0:00:18]} 11. Na4 {[%emt 0:02:52]} c5 {[%emt 0:04:44]} 12. c4 {[%emt 0:02:35]} Rd8 {[%emt 0:04:04]} 13. Qe2 {[%emt 0:04:13]} Bd7 {[%emt 0:00:37]} 14. Nc3 {[%emt 0:00:30]} Bc6 {[%emt 0:02:38]} 15. h4 {[%emt 0:08:28]} Rab8 {[%emt 0:04:45]} 16. Bf4 {[%emt 0:02:04]} e5 {[%emt 0:00:11]} 17. Be3 {[%emt 0:00:51]} b5 {[%emt 0:01:23]} 18. b3 {[%emt 0:03:43]} bxc4 {[%emt 0:06:33]} 19. bxc4 {[%emt 0:00:35]} Rb4 {[%emt 0:04:18]} 20. Rfd1 {[%emt 0:12:31]} Rxd1+ {[%emt 0:04:46]} 21. Rxd1 {[%emt 0:00:26]} Qb7 {[%emt 0:00:45]} 22. Qd3 {[%emt 0:07:36]} h6 {[%emt 0:03:33]} 23. Bf3 {[%emt 0:06:56]} Qc8 {[%emt 0:02:38]} 24. Nd5 {[%emt 0:14:12]} Bxd5 {[%emt 0:01:31]} 25. exd5 {[%emt 0:00:05]} Bd6 {[%emt 0:00:35]} 26. Rb1 {[%emt 0:03:24]} Qb7 {[%emt 0:03:20]} 27. Rxb4 {[%emt 0:01:06]} Qxb4 {[%emt 0:00:06]} 28. Kg2 {[%emt 0:01:00]} Qa4 {[%emt 0:09:09]} 29. a3 {[%emt 0:00:40]} Qd7 {[%emt 0:00:48]} 30. Qb1 {[%emt 0:01:51]} Qc7 {[%emt 0:01:44]} 31. Qf5 {[%emt 0:02:52]} Qd7 {[%emt 0:01:41]} 32. Qb1 {[%emt 0:01:33]} Qc7 {[%emt 0:00:07]} 33. Qf5 {[%emt 0:00:53]} Qd7 {[%emt 0:00:06]} 34. Qxd7 {[%emt 0:00:03]} Nxd7 {[%emt 0:00:05]} 35. Be4 {[%emt 0:02:11]} Kf8 {[%emt 0:01:28]} 36. Bd2 {[%emt 0:01:22]} Ke7 {[%emt 0:02:10]} 37. Kf3 {[%emt 0:00:53]} Nb6 {[%emt 0:00:11]} 38. Bd3 {[%emt 0:00:08]} f5 {[%emt 0:00:23]} 39. Bxf5 {[%emt 0:04:30]} Nxc4 {[%emt 0:00:06]} 40. Bc1 {[%emt 0:00:00]} Nb6 {[%emt 0:00:00]} 41. Ke4 {[%emt 0:03:15]} *

[Event "FIDE WYCC Girls U14 2023"]
[Site "Montesilvano"]
[Date "2023.11.18"]
[Round "6.15"]
[White "Jiang, Hanxi"]
[Black "Sneha Halder"]
[Result "0-1"]
[ECO "A43"]
[WhiteElo "1575"]
[BlackElo "1807"]
[Annotator "NA"]
[PlyCount "52"]
[EventDate "2023.11.13"]
[EventType "swiss"]
[EventCountry "ITA"]
[SourceTitle "playchess.com"]
[Source "ChessBase"]
[SourceQuality "1"]
[TimeControl "40/5400+30:1800+30"]

1. d4 {[%emt 0:00:01]} c5 {[%emt 0:01:33]} 2. d5 {[%emt 0:00:30]} b5 {[%emt 0:00:23]} 3. c4 {[%emt 0:02:15]} bxc4 {[%emt 0:00:10]} 4. e4 {[%emt 0:02:34]} d6 {[%emt 0:00:48]} 5. Nc3 {[%emt 0:00:47]} Nf6 {[%emt 0:00:08]} 6. Bxc4 {[%emt 0:03:23]} g6 {[%emt 0:00:16]} 7. Nge2 {[%emt 0:04:10]} Bg7 {[%emt 0:01:32]} 8. O-O {[%emt 0:02:13]} O-O {[%emt 0:00:03]} 9. Kh1 {[%emt 0:03:52]} Nbd7 {[%emt 0:03:17]} 10. f4 {[%emt 0:01:38]} Ne8 {[%emt 0:01:41]} 11. e5 {[%emt 0:05:51]} dxe5 {[%emt 0:02:32]} 12. f5 {[%emt 0:02:58]} Nb6 {[%emt 0:00:52]} 13. Bd3 {[%emt 0:08:32]} Bb7 {[%emt 0:01:21]} 14. Bg5 {[%emt 0:21:08]} Nd6 {[%emt 0:19:48]} 15. Qd2 {[%emt 0:07:53]} Nxd5 {[%emt 0:02:19]} 16. Ne4 {[%emt 0:14:13]} Qb6 {[%emt 0:08:46]} 17. N2g3 {[%emt 0:06:44]} Rad8 {[%emt 0:03:00]} 18. fxg6 {[%emt 0:04:33]} hxg6 {[%emt 0:00:19]} 19. Nxd6 {[%emt 0:04:15]} Qxd6 {[%emt 0:00:17]} 20. Bh6 {[%emt 0:00:20]} Nf4 {[%emt 0:00:28]} 21. Bxg7 {[%emt 0:01:24]} Kxg7 {[%emt 0:00:03]} 22. Nf5+ {[%emt 0:01:04]} gxf5 {[%emt 0:00:08]} 23. Rf3 {[%emt 0:00:21]} Bxf3 {[%emt 0:00:15]} 24. gxf3 {[%emt 0:00:07]} Qxd3 {[%emt 0:00:04]} 25. Rg1+ {[%emt 0:00:22]} Kf6 {[%emt 0:02:29]} 26. Qf2 {[%emt 0:00:44]} Rg8 {[%emt 0:00:08]} 0-1

[Event "FIDE WYCC Girls U14 2023"]
[Site "Montesilvano"]
[Date "2023.11.18"]
[Round "6.16"]
[White "Mkrtchyan, Anahit H."]
[Black "Skramstad, Oda Kofoed"]
[Result "*"]
[WhiteElo "1630"]
[BlackElo "1801"]
[Annotator "NA"]
[PlyCount "79"]
[EventDate "2023.11.13"]
[EventType "swiss"]
[EventCountry "ITA"]
[SourceTitle "playchess.com"]
[Source "ChessBase"]
[SourceQuality "1"]
[TimeControl "40/5400+30:1800+30"]

1. e4 {[%emt 0:00:03]} e5 {[%emt 0:01:22]} 2. Nf3 {[%emt 0:00:05]} Nc6 {[%emt 0:00:55]} 3. Bb5 {[%emt 0:00:06]} a6 {[%emt 0:01:12]} 4. Ba4 {[%emt 0:00:06]} d6 {[%emt 0:00:54]} 5. O-O {[%emt 0:03:36]} b5 {[%emt 0:03:03]} 6. Bb3 {[%emt 0:00:07]} Na5 {[%emt 0:00:47]} 7. d4 {[%emt 0:04:17]} Nxb3 {[%emt 0:00:10]} 8. axb3 {[%emt 0:00:07]} f6 {[%emt 0:00:08]} 9. h3 {[%emt 0:01:42]} Ne7 {[%emt 0:00:49]} 10. Qe2 {[%emt 0:02:42]} Ng6 {[%emt 0:02:40]} 11. Nc3 {[%emt 0:00:53]} Bb7 {[%emt 0:02:18]} 12. d5 {[%emt 0:02:43]} Be7 {[%emt 0:02:02]} 13. h4 {[%emt 0:04:06]} h5 {[%emt 0:10:45]} 14. Bd2 {[%emt 0:03:03]} Qd7 {[%emt 0:01:09]} 15. g3 {[%emt 0:01:18]} b4 {[%emt 0:08:15]} 16. Nd1 {[%emt 0:00:07]} a5 {[%emt 0:00:44]} 17. c4 {[%emt 0:02:02]} Bd8 {[%emt 0:06:56]} 18. Ne3 {[%emt 0:02:48]} Qf7 {[%emt 0:01:09]} 19. Rfc1 {[%emt 0:05:13]} Be7 {[%emt 0:01:29]} 20. c5 {[%emt 0:01:34]} O-O {[%emt 0:06:59]} 21. Nf5 {[%emt 0:07:56]} Bc8 {[%emt 0:08:57]} 22. c6 {[%emt 0:19:16]} Bd8 {[%emt 0:05:32]} 23. Bxb4 {[%emt 0:05:43]} Ba6 {[%emt 0:03:57]} 24. Qd2 {[%emt 0:00:15]} axb4 {[%emt 0:00:47]} 25. Ra4 {[%emt 0:00:04]} Ne7 {[%emt 0:05:13]} 26. Rca1 {[%emt 0:02:09]} Nxf5 {[%emt 0:01:51]} 27. exf5 {[%emt 0:00:06]} Be2 {[%emt 0:02:50]} 28. Qxe2 {[%emt 0:02:03]} Rxa4 {[%emt 0:00:14]} 29. Rxa4 {[%emt 0:00:30]} Qxd5 {[%emt 0:00:12]} 30. Qc4 {[%emt 0:00:04]} Qxc4 {[%emt 0:01:02]} 31. bxc4 {[%emt 0:00:01]} g6 {[%emt 0:01:40]} 32. fxg6 {[%emt 0:00:32]} Kg7 {[%emt 0:01:00]} 33. Rxb4 {[%emt 0:00:06]} Kxg6 {[%emt 0:04:41]} 34. Nd2 {[%emt 0:02:02]} f5 {[%emt 0:02:07]} 35. Kf1 {[%emt 0:00:08]} f4 {[%emt 0:03:35]} 36. Ke2 {[%emt 0:00:28]} fxg3 {[%emt 0:00:24]} 37. fxg3 {[%emt 0:00:04]} Kf5 {[%emt 0:00:51]} 38. Rb8 {[%emt 0:00:06]} Ke6 {[%emt 0:01:24]} 39. Ne4 {[%emt 0:03:19]} Rg8 {[%emt 0:06:47]} 40. b4 {[%emt 0:00:00]} *